bitfinex-derivatives/quotes_ETHF0:USTF0_20250126
["timestamp","ask_amount","ask_price","bid_price","bid_amount"]
[1737930476490,0.60609,3300.3,3300.2,2.69778577]
[1737930483997,0.60609,3300.3,3300.2,0.77298577]
[1737930484203,3.2078,3300.4,3300.1,0.00454925]
[1737930484396,2.53151,3300.2,3300.1,0.00454925]
[1737930488803,2.53151,3300.2,3300.1,2.11324925]
[1737930492897,0.60611,3300.2,3300.1,4.18954925]
[1737930493806,0.60611,3300.2,3300.1,7.39734925]
[1737930494009,0.60611,3300.2,3300.1,9.50574925]
[1737930495805,0.60611,3300.2,3300.1,6.29794925]
[1737930501308,0.60611,3300.2,3300.1,9.50574925]
[1737930507717,0.60611,3300.2,3300.1,5.32104925]
[1737930510919,0.60611,3300.2,3300.1,2.11324925]
[1737930511127,0.60611,3300.2,3300.1,4.03304925]
[1737930514628,0.60611,3300.2,3300.1,7.24084925]
[1737930518132,0.60611,3300.2,3300.1,7.48948599]
[1737930529846,3.52566,3300.7,3300.1,7.48948599]
[1737930530041,0.6061,3300.3,3300.1,7.48948599]
[1737930531949,3.52566,3300.7,3300.1,7.48948599]
[1737930532149,0.60604,3300.6,3300.5,0.77298577]
[1737930556259,3.2078,3300.9,3300.5,0.77298577]
[1737930556464,3.2078,3300.9,3300.8,0.77298577]
[1737930556663,3.81378,3300.9,3300.8,0.77298577]
[1737930556865,3.2078,3300.9,3300.8,0.77298577]
[1737930557165,0.60596,3301.0,3300.8,0.77298577]
[1737930557566,0.60598,3300.9,3300.8,0.77298577]
[1737930562777,0.60597,3301.0,3300.8,0.77298577]
[1737930562979,5.1069,3301.3,3300.9,0.77298577]
[1737930563175,2.67103,3301.2,3301.1,0.77298577]
[1737930575183,0.60593,3301.2,3301.1,0.77298577]
[1737930575384,2.58883,3301.2,3301.1,0.77298577]
[1737930582594,3.2078,3301.4,3301.1,1.37892577]
[1737930582595,3.81369,3301.4,3301.1,1.37892577]
[1737930582793,3.81369,3301.4,3301.3,0.77298577]
[1737930590710,0.60593,3301.2,3301.1,0.77298577]
[1737930591605,2.71813,3301.2,3301.1,0.77298577]
[1737930601632,0.60593,3301.2,3301.1,0.77298577]
[1737930603436,7.20881171,3301.4,3301.1,0.77298577]
[1737930603837,0.60593,3301.2,3301.1,0.77298577]
[1737930607637,5.19101171,3301.4,3301.1,0.77298577]
[1737930607838,0.60591,3301.3,3301.1,0.77298577]
[1737930608139,0.60591,3301.3,3301.2,2.036]
[1737930608634,3.20921171,3301.4,3301.2,2.036]
[1737930608834,3.20921171,3301.4,3301.3,2.0986]
[1737930609143,3.20921171,3301.4,3301.3,2.87158577]
[1737930609335,3.81510171,3301.4,3301.3,2.87158577]
[1737930609529,3.20921171,3301.4,3301.3,2.87158577]
[1737930612939,3.81510171,3301.4,3301.3,2.87158577]
[1737930613346,3.20921171,3301.4,3301.3,2.87158577]
[1737930613547,3.81510171,3301.4,3301.3,2.87158577]
[1737930620247,0.60730171,3301.4,3301.3,2.87158577]
[1737930621744,0.00141171,3301.4,3301.3,2.87158577]
[1737930623354,0.60730171,3301.4,3301.3,2.87158577]
[1737930624053,0.00141171,3301.4,3301.3,2.87158577]
[1737930628556,0.00141171,3301.4,3301.3,3.47749577]
[1737930629750,3.2078,3301.7,3301.3,3.47749577]
[1737930629751,3.2078,3301.7,3301.6,0.77298577]
[1737930632755,2.119,3302.4,3301.6,6.54597154]
[1737930632958,2.119,3302.4,3302.3,0.77298577]
[1737930634054,3.81347,3302.6,3302.3,0.77298577]
[1737930634255,3.2078,3302.6,3302.5,0.77298577]
[1737930634458,3.81347,3302.6,3302.5,0.77298577]
[1737930635063,3.2078,3302.6,3302.5,0.77298577]
[1737930635357,5.93217,3302.6,3302.5,0.77298577]
[1737930635560,7.95087,3302.6,3302.5,0.77298577]
[1737930639663,7.3452,3302.6,3302.5,0.77298577]
[1737930641063,4.1374,3302.6,3302.5,0.77298577]
[1737930641255,2.1187,3302.6,3302.5,0.77298577]
[1737930643358,2.0021,3302.7,3302.5,2.93478577]
[1737930643863,0.60564,3302.8,3302.5,2.93478577]
[1737930644164,0.60563,3302.8,3302.7,3.98078577]
[1737930644358,2.69203,3302.8,3302.7,3.98078577]
[1737930644555,2.0864,3302.8,3302.7,3.98078577]
[1737930645965,2.181,3303.2,3302.7,3.98078577]
[1737930646170,0.6056,3303.0,3302.7,3.2078]
[1737930646363,0.60562,3302.9,3302.7,3.2078]
[1737930646667,0.6056,3303.0,3302.7,3.2078]
[1737930647564,4.75129,3303.1,3302.9,0.77298577]
[1737930647962,4.1457,3303.1,3302.9,0.77298577]
[1737930648169,3.2078,3303.8,3303.0,0.77298577]
[1737930648368,2.6948,3303.6,3303.0,2.1747]
[1737930648570,2.0893,3303.6,3303.5,3.2078]
[1737930649365,2.0893,3303.6,3303.5,3.98078577]
[1737930649565,2.69479,3303.6,3303.5,3.98078577]
[1737930649764,2.0893,3303.6,3303.5,3.98078577]
[1737930654272,2.69479,3303.6,3303.5,3.98078577]
[1737930654569,2.0893,3303.6,3303.5,3.98078577]
[1737930655582,2.69479,3303.6,3303.5,3.98078577]
[1737930656273,2.0893,3303.6,3303.5,3.98078577]
[1737930657077,2.61508,3303.7,3303.5,3.98078577]
[1737930657282,2.61507,3303.7,3303.5,3.98078577]
[1737930657973,2.61507,3303.7,3303.6,4.1762]
[1737930658173,2.0634,3304.0,3303.6,4.1762]
[1737930658374,0.60546,3303.8,3303.6,4.1762]
[1737930658581,0.60544,3303.9,3303.7,3.2078]
[1737930658770,4.0597,3304.0,3303.7,3.2078]
[1737930659082,0.60543,3303.9,3303.7,3.2078]
[1737930659382,4.0597,3304.0,3303.7,3.2078]
[1737930659584,0.60545,3303.8,3303.7,3.2078]
[1737930661181,0.60545,3303.9,3303.7,3.98078577]
[1737930661375,0.60545,3303.8,3303.7,3.98078577]
[1737930662783,4.0597,3304.0,3303.7,3.98078577]
[1737930663079,4.0597,3304.0,3303.9,0.77298577]
[1737930663080,1.9963,3304.0,3303.9,0.77298577]
[1737930663483,2.60171,3304.0,3303.9,0.77298577]
[1737930663688,4.0024,3304.5,3303.9,0.77298577]
[1737930663881,4.0024,3304.5,3304.4,0.77298577]
[1737930664183,0.60532,3304.5,3304.4,0.77298577]
[1737930664384,3.81311,3304.6,3304.4,0.77298577]
[1737930664779,3.81311,3304.6,3304.5,1.9938]
[1737930665577,0.60531,3304.6,3304.5,1.9938]
[1737930665780,2.6968,3304.7,3304.5,1.9938]
[1737930665981,2.6968,3304.7,3304.6,0.77298577]
[1737930667081,0.60524,3305.0,3304.6,0.77298577]
[1737930667288,3.2078,3305.1,3304.9,0.77298577]
[1737930667583,3.81303,3305.1,3304.9,0.77298577]
[1737930667779,0.60523,3305.0,3304.9,0.77298577]
[1737930667985,0.60522,3305.1,3304.9,0.77298577]
[1737930668287,0.60522,3305.1,3304.5,3.2078]
[1737930668288,0.60522,3305.1,3305.0,0.77298577]
[1737930668781,3.2078,3305.5,3305.0,1.54597154]
[1737930668984,3.81294,3305.5,3305.4,0.77298577]
[1737930669180,3.2078,3305.5,3305.2,0.77298577]
[1737930669386,0.60517,3305.3,3305.2,0.77298577]
[1737930669986,0.60517,3305.3,3305.2,0.77161733]
[1737930671581,2.57757,3305.3,3305.2,0.77161733]
[1737930672482,1.9724,3305.3,3304.9,3.2078]
[1737930672783,1.9724,3305.3,3304.5,3.98078577]
[1737930672784,0.6053,3304.6,3304.5,3.98078577]
[1737930672986,0.6053,3304.6,3304.5,0.77298577]
[1737930676793,0.60532,3304.5,3304.4,1.6257448]
[1737930682196,0.60538,3304.2,3304.1,1.6257448]
[1737930684093,0.60538,3304.2,3304.1,3.7026448]
[1737930685497,0.60538,3304.2,3304.1,1.6257448]
[1737930690993,3.2078,3304.7,3304.1,1.6257448]
[1737930691192,0.60528,3304.7,3304.6,1.6257448]
[1737930693106,1.9998,3305.0,3304.6,1.6257448]
[1737930693307,0.60527,3304.8,3304.7,2.0942]
[1737930693606,0.60527,3304.8,3304.7,6.9277448]
[1737930698012,0.60524,3305.0,3304.7,6.9277448]
[1737930698308,0.60523,3305.0,3304.7,6.9277448]
[1737930698607,0.60521,3305.2,3304.7,6.9277448]
[1737930699614,0.60514,3305.5,3305.1,3.2078]
[1737930699801,0.60517,3305.3,3305.2,4.1155]
[1737930700810,0.60517,3305.3,3305.2,6.1447]
[1737930701008,0.60517,3305.4,3305.2,6.1447]
[1737930701207,3.2078,3305.6,3305.2,6.1447]
[1737930701403,0.60514,3305.5,3305.4,1.6257448]
[1737930701916,0.60511,3305.7,3305.4,1.6257448]
[1737930702106,0.60511,3305.7,3305.6,1.6257448]
[1737930709719,0.60511,3305.7,3305.6,3.6937448]
[1737930712726,0.60511,3305.7,3305.6,2.83695992]
[1737930719233,0.60511,3305.7,3305.6,0.76895992]
[1737930729131,2.1259,3305.9,3305.6,1.53791984]
[1737930729333,2.1259,3305.9,3305.8,1.53791984]
[1737930729334,2.73096,3305.9,3305.8,1.53791984]
[1737930729539,2.1259,3305.9,3305.8,1.53791984]
[1737930730050,2.73096,3305.9,3305.8,0.76895992]
[1737930738954,2.73096,3305.9,3305.8,1.53791984]
[1737930739255,2.73096,3305.9,3305.8,0.76895992]
[1737930741460,2.73096,3305.9,3305.8,1.53791984]
[1737930746862,2.73096,3305.9,3305.8,0.76895992]
[1737930752368,2.1259,3305.9,3305.8,1.53791984]
[1737930752569,2.73096,3305.9,3305.8,1.53791984]
[1737930752766,2.73096,3305.9,3305.8,0.76895992]
[1737930753987,2.73096,3305.9,3305.8,1.53791984]
[1737930754179,2.1259,3305.9,3305.8,1.53791984]
[1737930754476,2.73096,3305.9,3305.8,1.53791984]
[1737930754674,2.1259,3305.9,3305.8,1.53791984]
[1737930754872,2.73096,3305.9,3305.8,1.53791984]
[1737930755076,2.73096,3305.9,3305.8,0.76895992]
[1737930757485,4.88716,3305.9,3305.8,0.76895992]
[1737930783309,2.73096,3305.9,3305.8,0.76895992]
[1737930784111,0.60506,3305.9,3305.8,0.76895992]
[1737930807133,5.2358,3306.5,3305.8,0.76895992]
[1737930807134,0.60505,3306.0,3305.8,1.53791984]
[1737930807327,0.60505,3306.0,3305.9,3.68001984]
[1737930807728,0.60505,3306.0,3305.9,2.91105992]
[1737930809137,0.60505,3306.0,3305.9,3.68001984]
[1737930810834,0.60505,3306.0,3305.9,2.91105992]
[1737930811333,0.60505,3306.0,3305.9,3.68001984]
[1737930812335,0.60505,3306.0,3305.9,2.91105992]
[1737930815539,0.60505,3306.0,3305.9,6.88781984]
[1737930815943,0.60505,3306.0,3305.9,3.68001984]
[1737930816142,0.60505,3306.0,3305.9,6.88781984]
[1737930828847,0.60505,3306.0,3305.9,6.11885992]
[1737930831052,0.60505,3306.0,3305.9,2.91105992]
[1737930831356,0.60505,3306.0,3305.9,6.11885992]
[1737930834647,2.156,3306.4,3305.9,6.88781984]
[1737930834853,2.76097,3306.4,3306.3,3.97675992]
[1737930840459,2.76097,3306.4,3306.3,0.76895992]
[1737930846362,2.76097,3306.4,3306.3,3.97675992]
[1737930859174,2.76097,3306.4,3306.3,0.76895992]
[1737930862272,2.76097,3306.4,3306.0,1.9852]
[1737930862273,0.60499,3306.3,3306.1,0.76895992]
[1737930862469,0.60501,3306.2,3306.1,0.76895992]
[1737930862774,4.60721,3306.2,3306.1,0.76895992]
[1737930864771,4.0022,3306.2,3305.9,0.76895992]
[1737930864971,0.60505,3306.0,3305.9,0.76895992]
[1737930866175,0.60508,3305.8,3305.7,0.76895992]
[1737930866776,2.61928,3305.8,3305.7,0.76895992]
[1737930871579,0.60508,3305.8,3305.7,0.76895992]
[1737930872471,2.64268,3305.8,3305.7,0.76895992]
[1737930875090,0.6051,3305.7,3305.6,0.00454221]
[1737930875386,2.6826,3305.7,3305.6,0.00454221]
[1737930878394,3.45155992,3305.7,3305.6,0.00454221]
[1737930880194,8.45155992,3305.7,3305.6,0.00454221]
[1737930880593,3.45155992,3305.7,3305.6,0.00454221]
[1737930882297,3.45155992,3305.7,3305.6,2.21e-06]
[1737930891806,8.45155992,3305.7,3305.6,2.21e-06]
[1737930892506,3.45155992,3305.7,3305.6,2.21e-06]
[1737930894310,8.45155992,3305.7,3305.6,2.21e-06]
[1737930894512,3.45155992,3305.7,3305.6,2.21e-06]
[1737930895811,8.45155992,3305.7,3305.6,2.21e-06]
[1737930899515,0.60523,3305.0,3304.9,4.1856]
[1737930899814,4.58198992,3305.0,3304.9,4.1856]
[1737930902307,3.97675992,3305.0,3304.6,0.00454221]
[1737930902518,1.37423992,3304.7,3304.6,0.00454221]
[1737930903906,1.37423992,3304.7,3304.5,1.948]
[1737930903907,0.76895992,3304.7,3304.5,1.948]
[1737930904107,3.8131,3304.6,3304.5,1.948]
[1737930905708,0.60534,3304.4,3304.3,4.1556]
[1737930905910,1.37429992,3304.4,3304.3,4.1556]
[1737930907117,1.37429992,3304.4,3304.3,6.1764]
[1737930911216,0.60534,3304.4,3304.3,6.1764]
[1737930912913,3.2078,3304.6,3304.3,6.1764]
[1737930913307,0.60534,3304.4,3304.3,6.1764]
[1737930913821,3.2078,3304.6,3304.3,6.1764]
[1737930914020,0.60529,3304.7,3304.4,4.58208992]
[1737930914211,0.76895992,3305.0,3304.4,3.97675992]
[1737930914410,0.6053,3304.7,3304.4,3.97675992]
[1737930914614,3.5465565,3305.1,3304.4,3.97675992]
[1737930914912,0.6053,3304.7,3304.4,3.97675992]
[1737930915415,3.5465565,3305.1,3304.4,3.97675992]
[1737930915807,0.60529,3304.7,3304.4,3.97675992]
[1737930916110,3.5465565,3305.1,3304.4,3.97675992]
[1737930916310,0.60529,3304.7,3304.4,3.97675992]
[1737930916719,3.5465565,3305.1,3304.6,0.76895992]
[1737930916921,0.60528,3304.8,3304.6,0.76895992]
[1737930917613,0.60524,3305.0,3304.6,0.76895992]
[1737930917810,0.60525,3304.9,3304.6,0.76895992]
[1737930918316,0.60525,3304.9,3304.8,0.76895992]
[1737930921523,0.60524,3305.0,3304.8,0.76895992]
[1737930921825,2.77759658,3305.1,3304.9,4.1046]
[1737930922119,0.60523,3305.0,3304.9,6.2138]
[1737930939025,0.60522,3305.1,3304.9,6.2138]
[1737930939232,0.60522,3305.1,3305.0,0.76895992]
[1737930950731,4.85308,3305.3,3305.0,0.76895992]
[1737930951040,4.85308,3305.3,3305.2,0.76895992]
[1737930952644,4.2479,3305.3,3305.2,0.76895992]
[1737930954345,2.1046,3305.3,3305.2,0.76895992]
[1737930954538,0.60516,3305.4,3305.2,0.76895992]
[1737930954848,3.2078,3305.6,3305.3,2.0069]
[1737930955044,0.60516,3305.4,3305.3,3.9726]
[1737930955848,3.2078,3305.6,3305.3,3.9726]
[1737930955849,0.60513,3305.6,3305.3,3.9726]
[1737930956045,4.1548,3305.7,3305.5,0.76895992]
[1737930956347,2.1396,3305.7,3305.5,0.76895992]
[1737930956541,2.7447,3305.7,3305.6,1.9617]
[1737930958249,0.60508,3305.8,3305.6,1.9617]
[1737930958438,0.60508,3305.8,3305.7,0.76895992]
[1737930958640,0.60508,3305.8,3305.7,6.07445992]
[1737930960847,0.60508,3305.8,3305.7,3.97675992]
[1737930980776,2.0866,3305.9,3305.7,3.97675992]
[1737930980975,0.60508,3305.8,3305.7,3.97675992]
[1737930982768,2.0866,3305.9,3305.7,3.97675992]
[1737930982965,2.0866,3305.9,3305.8,2.0915]
[1737930983154,2.0866,3305.9,3305.8,4.0441]
[1737930985767,2.62436659,3306.0,3305.8,4.0441]
[1737930985768,2.01931659,3306.0,3305.8,4.0441]
[1737930986069,2.01931659,3306.0,3305.9,0.76895992]
[1737930989871,2.62436659,3306.0,3305.9,0.76895992]
[1737930992680,0.60514,3305.5,3305.4,0.76895992]
[1737930995874,0.60517,3305.3,3305.2,0.76895992]
[1737930998974,0.60519,3305.2,3305.0,0.76895992]
[1737930999174,4.77769,3305.2,3305.0,0.76895992]
[1737931000474,0.60521,3305.1,3305.0,0.76895992]
[1737931003279,6.80771,3305.1,3305.0,0.76895992]
[1737931009586,0.60523,3305.0,3304.9,3.2078]
[1737931017389,0.60523,3305.0,3304.9,5.1869]
[1737931018291,0.60523,3305.0,3304.9,7.1688]
[1737931019399,3.2078,3305.7,3304.9,7.1688]
[1737931019589,0.60516,3305.4,3305.2,0.76895992]
[1737931020090,0.60512,3305.6,3305.3,3.2078]
[1737931020394,0.60512,3305.6,3305.4,4.84365992]
[1737931020686,0.60512,3305.6,3305.4,6.94565992]
[1737931020894,0.60514,3305.5,3305.4,6.94565992]
[1737931022194,0.60514,3305.5,3305.4,6.1767]
[1737931027297,0.60514,3305.5,3305.4,4.1903]
[1737931027688,0.60514,3305.5,3305.4,2.0883]
[1737931028398,0.60516,3305.4,3305.3,3.2078]
[1737931029100,0.76895992,3305.7,3305.0,0.76895992]
[1737931029400,0.60521,3305.1,3305.0,0.76895992]
[1737931035303,4.1604,3305.2,3304.8,3.2078]
[1737931035508,0.6053,3304.6,3304.5,0.76895992]
[1737931039305,0.60534,3304.4,3304.3,0.76895992]
[1737931049411,0.60534,3304.4,3304.2,0.00454221]
[1737931049615,0.60536,3304.3,3304.2,0.00454221]
[1737931061417,4.84206,3304.3,3304.2,0.00454221]
[1737931070830,8.04986,3304.3,3304.2,0.00454221]
[1737931077425,10.12626,3304.3,3304.2,0.00454221]
[1737931106056,6.91846,3304.3,3304.2,0.00454221]
[1737931113561,0.60545,3303.8,3303.7,4.1868]
[1737931113764,1.37440992,3303.8,3303.7,2.0561]
[1737931114154,5.65180992,3303.8,3303.7,2.0561]
[1737931116259,0.6055,3303.5,3303.4,0.00454221]
[1737931116459,1.37445992,3303.5,3303.4,0.00454221]
[1737931131964,0.6055,3303.5,3303.4,0.00454221]
[1737931132165,0.6055,3303.5,3303.4,0.77350213]
[1737931132566,3.2078,3303.9,3303.4,0.77350213]
[1737931132770,0.00454221,3304.1,3303.6,4.58222992]
[1737931132970,0.60994221,3304.1,3303.8,0.76895992]
[1737931133171,0.60994221,3304.1,3303.9,1.9705]
[1737931133367,0.60541,3304.0,3303.9,1.9705]
[1737931133873,0.00454221,3304.1,3303.9,1.9705]
[1737931134070,0.00454221,3304.1,3304.0,3.2078]
[1737931134071,0.60993221,3304.1,3304.0,3.2078]
[1737931136073,0.00454221,3304.1,3304.0,3.97675992]
[1737931138166,0.60993221,3304.1,3304.0,3.97675992]
[1737931141274,0.60993221,3304.1,3304.0,0.76895992]
[1737931141673,0.60993221,3304.1,3304.0,3.97675992]
[1737931142674,0.00454221,3304.1,3304.0,3.97675992]
[1737931143581,0.60993221,3304.1,3304.0,3.97675992]
[1737931144682,0.00454221,3304.1,3304.0,3.97675992]
[1737931144980,0.00454221,3304.1,3304.0,9.58216992]
[1737931146083,0.00454221,3304.1,3304.0,8.97675992]
[1737931148381,0.00454221,3304.1,3304.0,9.22026999]
[1737931149185,0.00454221,3304.1,3304.0,4.22026999]
[1737931150184,0.00454221,3304.1,3304.0,6.19576999]
[1737931154485,0.00454221,3304.1,3304.0,11.19576999]
[1737931154784,0.00454221,3304.1,3304.0,6.19576999]
[1737931159987,0.60993221,3304.1,3304.0,6.19576999]
[1737931161392,0.00454221,3304.1,3304.0,6.19576999]
[1737931164388,0.60534,3304.5,3304.0,12.57012991]
[1737931164588,0.60534,3304.5,3304.4,0.76895992]
[1737931166696,0.60534,3304.5,3304.4,3.97675992]
[1737931169090,2.0303,3304.7,3304.4,3.97675992]
[1737931169393,2.63558,3304.7,3304.6,0.76895992]
[1737931170788,0.00454221,3304.8,3304.6,0.76895992]
[1737931170995,2.41943756,3305.2,3304.6,0.76895992]
[1737931171196,2.41943756,3305.2,3305.1,3.97675992]
[1737931171197,1.44662302,3305.2,3305.1,3.97675992]
[1737931171889,2.05181302,3305.2,3305.1,3.97675992]
[1737931172399,1.44662302,3305.2,3305.1,3.97675992]
[1737931173404,2.05181302,3305.2,3305.1,3.97675992]
[1737931174196,1.44662302,3305.2,3305.1,3.97675992]
[1737931174401,2.0428,3305.4,3305.1,3.97675992]
[1737931174602,2.0428,3305.4,3305.3,0.76895992]
[1737931175002,2.64796,3305.4,3305.3,0.76895992]
[1737931175207,0.0045188,3305.5,3305.3,0.76895992]
[1737931175605,0.0045188,3305.5,3305.4,1.9606]
[1737931182214,0.0045188,3305.5,3305.4,2.56576]
[1737931182407,0.0045188,3305.5,3305.4,1.9606]
[1737931185212,0.0045188,3305.5,3305.4,2.56576]
[1737931185715,2.0428,3305.8,3305.5,0.60512]
[1737931186016,2.0428,3305.8,3305.7,3.97675992]
[1737931191507,2.0428,3305.8,3305.7,4.22331967]
[1737931194520,2.0623,3305.9,3305.7,4.22331967]
[1737931194723,2.0623,3305.9,3305.7,6.38471967]
[1737931195120,2.0623,3305.9,3305.7,6.98981967]
[1737931195822,2.0623,3305.9,3305.8,2.0569]
[1737931199326,2.0623,3305.9,3305.8,2.66198]
[1737931199517,2.28120992,3306.9,3305.8,2.66198]
[1737931199717,2.28120992,3306.9,3306.3,0.76895992]
[1737931199718,0.60497,3306.4,3306.3,0.76895992]
[1737931200424,0.60501,3306.2,3306.1,3.97675992]
[1737931200723,6.1474,3306.6,3306.1,3.97675992]
[1737931200920,0.60505,3306.0,3305.9,0.76895992]
[1737931202011,1.51239,3306.5,3305.9,0.76895992]
[1737931202226,1.51239,3306.5,3306.1,0.76895992]
[1737931202424,0.60501,3306.2,3306.1,0.76895992]
[1737931203522,0.60501,3306.2,3306.1,3.97675992]
[1737931214032,0.60501,3306.2,3306.1,0.76895992]
[1737931214228,0.60501,3306.2,3306.1,3.97675992]
[1737931215432,0.605,3306.3,3306.1,3.97675992]
[1737931215627,3.846,3306.2,3306.1,3.97675992]
[1737931215830,5.7095,3306.2,3306.1,3.97675992]
[1737931218632,5.7095,3306.2,3306.1,4.58178992]
[1737931218633,1.8635,3306.2,3306.1,4.58178992]
[1737931218939,0.99309559,3306.2,3306.1,4.58178992]
[1737931219237,4.37584,3306.7,3306.1,4.58178992]
[1737931219538,0.60494,3306.6,3306.4,0.76895992]
[1737931220841,3.7709,3306.7,3306.4,0.76895992]
[1737931221030,0.60494,3306.6,3306.4,0.76895992]
[1737931221730,0.60494,3306.6,3306.5,3.2078]
[1737931222131,2.47094,3306.6,3306.5,3.2078]
[1737931226543,2.47094,3306.6,3306.5,5.1341]
[1737931227439,3.2078,3307.2,3306.5,5.1341]
[1737931227647,0.6049,3306.9,3306.8,0.76895992]
[1737931227838,3.991,3307.0,3306.8,0.76895992]
[1737931228038,0.60482,3307.3,3306.8,1.37384992]
[1737931228238,0.60483,3307.2,3307.0,0.76895992]
[1737931228644,0.60482,3307.3,3307.0,2.69525992]
[1737931229338,0.60483,3307.2,3307.0,2.69525992]
[1737931230836,5.9697,3307.5,3307.0,2.69525992]
[1737931231036,0.60483,3307.2,3307.0,2.69525992]
[1737931231237,0.60482,3307.3,3307.0,2.69525992]
[1737931231437,5.9697,3307.5,3307.0,2.69525992]
[1737931231438,0.6048,3307.4,3307.0,2.69525992]
[1737931231648,0.60481,3307.3,3307.0,2.69525992]
[1737931232855,0.60481,3307.3,3307.0,5.90305992]
[1737931233349,0.6048,3307.4,3307.2,0.76895992]
[1737931233541,0.6048,3307.4,3307.3,1.9603]
[1737931236150,3.991,3307.5,3307.3,1.9603]
[1737931236352,4.59577,3307.5,3307.3,1.9603]
[1737931236750,4.59577,3307.5,3307.4,0.76895992]
[1737931237349,3.2078,3308.2,3307.4,3.97675992]
[1737931237552,0.60467,3308.1,3307.9,0.76895992]
[1737931237855,0.60467,3308.1,3308.0,3.8312]
[1737931238654,0.60472,3307.8,3307.7,0.76895992]
[1737931238955,0.60472,3307.8,3307.7,3.97675992]
[1737931239148,5.8684,3308.2,3307.7,3.97675992]
[1737931239348,0.60467,3308.1,3308.0,0.76895992]
[1737931239747,3.8826,3308.2,3307.8,4.71435992]
[1737931239950,0.6047,3307.9,3307.8,4.71435992]
[1737931241253,0.6047,3307.9,3307.8,7.92215992]
[1737931244655,3.8826,3308.2,3307.8,7.92215992]
[1737931244855,4.48724,3308.2,3308.1,0.76895992]
[1737931250260,0.60464,3308.2,3308.1,0.76895992]
[1737931250761,0.60464,3308.2,3308.1,2.00935992]
[1737931250964,0.60464,3308.2,3308.1,1.2404]
[1737931253362,0.60466,3308.1,3308.0,0.76895992]
[1737931253557,1.80926,3308.1,3308.0,0.76895992]
[1737931256860,0.60466,3308.1,3308.0,1.53791984]
[1737931257160,0.60466,3308.2,3308.0,1.53791984]
[1737931257355,0.60466,3308.2,3308.1,1.2484]
[1737931260764,3.7442,3308.5,3308.1,1.2484]
[1737931261065,0.60462,3308.4,3308.3,3.97675992]
[1737931264760,0.60462,3308.4,3308.3,5.15735992]
[1737931272568,0.60462,3308.4,3308.3,3.97675992]
[1737931272768,5.0,3308.4,3308.0,0.76895992]
[1737931272975,0.6047,3307.9,3307.8,0.00453528]
[1737931278372,5.0,3307.9,3307.3,0.76895992]
[1737931278680,0.60473,3307.7,3307.3,0.76895992]
[1737931279576,3.49047209,3308.0,3307.3,0.7734952]
[1737931279767,0.60479,3307.4,3307.3,0.7734952]
[1737931280577,0.60479,3307.4,3307.3,0.00453528]
[1737931318893,1.37374992,3307.4,3307.3,0.00453528]
[1737931319099,0.60479,3307.4,3307.3,0.00453528]
[1737931329210,1.37374992,3307.4,3307.3,0.00453528]
[1737931337714,2.34774992,3307.4,3307.3,0.00453528]
[1737931347823,1.57879,3307.4,3307.3,0.00453528]
[1737931357136,2.34774992,3307.4,3307.3,0.00453528]
[1737931359437,1.08219,3307.4,3307.3,0.00453528]
[1737931397456,0.4774,3307.4,3307.3,0.00453528]
[1737931398458,1.08219,3307.4,3307.3,0.00453528]
[1737931408769,0.60479,3307.4,3307.3,0.00453528]
[1737931409666,3.2078,3309.0,3307.3,5.7734952]
[1737931409869,0.60457,3308.6,3308.5,0.76895992]
[1737931412369,3.2078,3309.0,3308.5,0.76895992]
[1737931412571,0.60457,3308.6,3308.5,0.76895992]
[1737931413667,0.60456,3308.7,3308.5,0.76895992]
[1737931413871,0.60456,3308.7,3308.6,3.2078]
[1737931414169,0.76895992,3309.3,3308.6,3.2078]
[1737931414380,0.60444,3309.3,3309.2,0.76895992]
[1737931416176,0.60446,3309.2,3309.1,0.9697]
[1737931417767,0.60445,3309.3,3309.1,0.9697]
[1737931417974,0.60445,3309.3,3309.2,0.76895992]
[1737931424380,0.60445,3309.3,3309.2,1.78175992]
[1737931425879,0.76895992,3309.9,3309.2,1.78175992]
[1737931426074,0.76895992,3309.9,3309.5,3.2078]
[1737931426483,0.60439,3309.6,3309.5,3.2078]
[1737931435379,0.60439,3309.6,3309.5,3.7212]
[1737931438185,0.60642003,3309.6,3309.5,3.7212]
[1737931440387,0.00203003,3309.6,3309.5,3.7212]
[1737931440587,0.60642003,3309.6,3309.5,3.7212]
[1737931440990,0.00203003,3309.6,3309.5,3.7212]
[1737931441184,0.60642003,3309.6,3309.5,3.7212]
[1737931442595,0.60642003,3309.6,3309.5,3.2078]
[1737931446497,0.00203003,3309.6,3309.5,3.2078]
[1737931448694,0.48763003,3309.6,3309.5,3.2078]
[1737931450596,0.00203003,3309.6,3309.5,3.81221]
[1737931457301,0.00203003,3309.6,3309.5,8.81221]
[1737931460607,0.00203003,3309.6,3309.5,3.81221]
[1737931463305,0.00203003,3309.6,3309.5,4.58116992]
[1737931463910,0.9694,3310.4,3309.5,3.97675992]
[1737931464113,0.9694,3310.4,3310.3,0.76895992]
[1737931467918,0.9694,3310.4,3310.3,1.37321992]
[1737931468118,0.9694,3310.4,3310.3,0.76895992]
[1737931468312,0.9694,3310.4,3310.3,1.37321992]
[1737931472320,3.2078,3311.0,3310.3,0.76895992]
[1737931472522,0.5151,3310.7,3310.6,3.2078]
[1737931473822,0.5151,3310.7,3310.6,3.97675992]
[1737931474814,0.5151,3310.7,3310.6,4.58096992]
[1737931475719,0.5151,3310.7,3310.6,3.97675992]
[1737931475917,1.11929,3310.7,3310.6,1.60585992]
[1737931476115,1.11929,3310.7,3310.6,0.76895992]
[1737931480226,0.60419,3310.7,3310.6,0.76895992]
[1737931481318,1.0117,3310.9,3310.3,0.00453528]
[1737931481522,0.60422,3310.5,3310.4,0.76895992]
[1737931488825,0.60426,3310.3,3310.2,3.97675992]
[1737931491739,0.60426,3310.3,3310.2,3.2078]
[1737931493026,1.0016,3310.4,3310.1,0.00453528]
[1737931493233,0.60428,3310.2,3310.1,0.00453528]
[1737931496827,3.81208,3310.2,3310.1,0.00453528]
[1737931497631,8.81208,3310.2,3310.1,0.00453528]
[1737931498631,3.81208,3310.2,3310.1,0.00453528]
[1737931500335,8.81208,3310.2,3310.1,5.28e-06]
[1737931506537,3.81208,3310.2,3310.1,5.28e-06]
[1737931517036,8.81208,3310.2,3310.1,5.28e-06]
[1737931518552,3.81208,3310.2,3310.1,5.28e-06]